fUST/lending_fUST_20240726
["ID","MTS","AMOUNT","RATE_DAILY","PERIOD"]
[333244903,1721975442805,-500.0,0.00013698,2]
[333244905,1721975442815,-500.0,0.00013698,2]
[333244907,1721975442826,-640.54637123,0.00013698,2]
[333244909,1721975442835,-550.54050196,0.00013698,2]
[333244911,1721975442845,-500.0,0.00013698,2]
[333244913,1721975442855,-500.0,0.00013698,2]
[333244915,1721975442866,-504.00163031,0.00013698,2]
[333244917,1721975442876,-693.06,0.00013698,2]
[333244919,1721975442886,-500.0,0.00013698,2]
[333244921,1721975442896,-791.19,0.00013698,2]
[333244923,1721975442905,-500.0,0.00013698,2]
[333244926,1721975442916,-502.08201003,0.00013698,2]
[333244928,1721975442926,-500.0,0.00013698,2]
[333244930,1721975442936,-500.0,0.00013698,2]
[333244933,1721975442945,-504.23758031,0.00013698,2]
[333244936,1721975442956,-503.8757368,0.00013698,2]
[333244939,1721975442965,-512.0384615,0.00013698,2]
[333244942,1721975442975,-500.0,0.00013698,2]
[333244943,1721975442985,-500.0,0.00013698,2]
[333244946,1721975442994,-500.0,0.00013698,2]
[333244948,1721975443004,-505.60284264,0.00013698,2]
[333244951,1721975443014,-500.0,0.00013698,2]
[333244954,1721975443025,-574.9,0.00013698,2]
[333244958,1721975443035,-500.0,0.00013698,2]
[333244961,1721975443045,-445.50083456,0.00013698,2]
[333244963,1721975443054,-500.0,0.00013698,2]
[333244965,1721975443064,-396.59936613,0.00013698,2]
[333244968,1721975443074,-500.0,0.00013698,2]
[333244970,1721975443083,-500.0,0.00013698,2]
[333244972,1721975443093,-500.0,0.00013698,2]
[333244975,1721975443102,-500.0,0.00013698,2]
[333244976,1721975443111,-500.0,0.00013698,2]
[333244978,1721975443121,-500.0,0.00013698,2]
[333244980,1721975443131,-500.0,0.00013698,2]
[333244982,1721975443141,-500.0,0.00013698,2]
[333244985,1721975443152,-500.0,0.00013698,2]
[333244987,1721975443162,-500.0,0.00013698,2]
[333244990,1721975443172,-500.0,0.00013698,2]
[333244993,1721975443183,-510.65281105,0.00013698,2]
[333244997,1721975443193,-500.0,0.00013698,2]
[333245000,1721975443204,-502.34,0.00013698,2]
[333245002,1721975443214,-151.0,0.00013698,2]
[333245003,1721975443224,-166.458948,0.00013698,2]
[333245004,1721975443233,-500.0,0.00013698,2]
[333245005,1721975443243,-639.26,0.00013698,2]
[333245006,1721975443253,-500.0,0.00013698,2]
[333245007,1721975443262,-500.0,0.00013698,2]
[333245008,1721975443273,-677.3,0.00013698,2]
[333245009,1721975443282,-500.0,0.00013698,2]
[333245011,1721975443293,-500.0,0.00013698,2]
[333245012,1721975443302,-500.0,0.00013698,2]
[333245014,1721975443312,-500.0,0.00013698,2]
[333245015,1721975443322,-500.0,0.00013698,2]
[333245017,1721975443334,-501.53796063,0.00013698,2]
[333245018,1721975443344,-1787.1,0.00013698,2]
[333245019,1721975443355,-548.24,0.00013698,2]
[333245020,1721975443364,-500.0,0.00013698,2]
[333245021,1721975443375,-500.0,0.00013698,2]
[333245022,1721975443385,-500.0,0.00013698,2]
[333245023,1721975443394,-500.0,0.00013698,2]
[333245024,1721975443404,-500.0,0.00013698,2]
[333245025,1721975443416,-393.76072345,0.00013698,2]
[333245026,1721975443426,-500.0,0.00013698,2]
[333245027,1721975443436,-500.0,0.00013698,2]
[333245028,1721975443447,-500.0,0.00013698,2]
[333245029,1721975443456,-500.0,0.00013698,2]
[333245030,1721975443466,-500.0,0.00013698,2]
[333245031,1721975443476,-500.0,0.00013698,2]
[333245032,1721975443486,-510.54800537,0.00013698,2]
[333245033,1721975443495,-1115.44,0.00013698,2]
[333245034,1721975443505,-264.24634082,0.00013698,2]
[333245035,1721975443515,-500.0,0.00013698,2]
[333245036,1721975443524,-500.0,0.00013698,2]
[333245037,1721975443534,-500.0,0.00013698,2]
[333245038,1721975443544,-500.0,0.00013698,2]
[333245039,1721975443554,-1171.1,0.00013698,2]
[333245040,1721975443564,-500.0,0.00013698,2]
[333245041,1721975443575,-500.0,0.00013698,2]
[333245042,1721975443585,-500.0,0.00013698,2]
[333245043,1721975443599,-500.0,0.00013698,2]
[333245044,1721975443609,-500.0,0.00013698,2]
[333245045,1721975443622,-500.0,0.00013698,2]
[333245046,1721975443632,-500.0,0.00013698,2]
[333245047,1721975443643,-500.0,0.00013698,2]
[333245048,1721975443652,-502.56103007,0.00013698,2]
[333245049,1721975443663,-505.39149835,0.00013698,2]
[333245050,1721975443676,-151.0,0.00013698,2]
[333245051,1721975443686,-513.00394085,0.00013698,2]
[333245052,1721975443698,-151.0,0.00013698,2]
[333245053,1721975443707,-500.0,0.00013698,2]
[333245054,1721975443719,-151.0,0.00013698,2]
[333245055,1721975443730,-151.0,0.00013698,2]
[333245056,1721975443740,-151.0,0.00013698,2]
[333245057,1721975443751,-396.72760412,0.00013698,2]
[333245058,1721975443761,-151.0,0.00013698,2]
[333245059,1721975443771,-500.0,0.00013698,2]
[333245060,1721975443782,-151.0,0.00013698,2]
[333245061,1721975443794,-151.0,0.00013698,2]
[333245062,1721975443805,-151.0,0.00013698,2]
[333245063,1721975443815,-151.0,0.00013698,2]
[333245064,1721975443826,-179.247721,0.00013698,2]
[333245065,1721975443837,-630.61875871,0.00013698,2]
[333245066,1721975443848,-500.0,0.00013698,2]
[333245067,1721975443859,-516.77693941,0.00013698,2]
[333245068,1721975443869,-501.00313867,0.00013698,2]
[333245069,1721975443879,-500.0,0.00013698,2]
[333245070,1721975443889,-500.0,0.00013698,2]
[333245071,1721975443899,-500.0,0.00013698,2]
[333245072,1721975443909,-1102.4,0.00013698,2]
[333245073,1721975443921,-500.0,0.00013698,2]
[333245074,1721975443931,-151.0,0.00013698,2]
[333245075,1721975443941,-151.0,0.00013698,2]
[333245076,1721975443954,-151.0,0.00013698,2]
[333245077,1721975443963,-152.13584,0.00013698,2]
[333245078,1721975443973,-500.0,0.00013698,2]
[333245079,1721975443982,-500.0,0.00013698,2]
[333245080,1721975443991,-500.0,0.00013698,2]
[333245081,1721975444000,-500.0,0.00013698,2]
[333245082,1721975444010,-504.354886,0.00013698,2]
[333245083,1721975444019,-500.0,0.00013698,2]
[333245084,1721975444028,-168.77667,0.00013698,2]
[333245085,1721975444038,-168.77667,0.00013698,2]
[333245086,1721975444047,-1067.62,0.00013698,2]
[333245087,1721975444057,-168.77667,0.00013698,2]
[333245088,1721975444066,-168.77667,0.00013698,2]
[333245089,1721975444076,-168.77667,0.00013698,2]
[333245090,1721975444085,-168.77667,0.00013698,2]
[333245091,1721975444094,-168.77667,0.00013698,2]
[333245092,1721975444103,-168.77667,0.00013698,2]
[333245093,1721975444113,-500.0,0.00013698,2]
[333245094,1721975444122,-168.77667,0.00013698,2]
[333245095,1721975444132,-168.77667,0.00013698,2]
[333245096,1721975444141,-168.77667,0.00013698,2]
[333245097,1721975444151,-519.81703122,0.00013698,2]
[333245098,1721975444160,-168.77667,0.00013698,2]
[333245099,1721975444170,-168.77667,0.00013698,2]
[333245100,1721975444179,-168.77667,0.00013698,2]
[333245101,1721975444188,-168.77667,0.00013698,2]
[333245102,1721975444199,-168.77667,0.00013698,2]
[333245103,1721975444209,-168.77667,0.00013698,2]
[333245104,1721975444218,-500.0,0.00013698,2]
[333245105,1721975444227,-168.77667,0.00013698,2]
[333245106,1721975444237,-168.77667,0.00013698,2]
[333245107,1721975444246,-559.32,0.00013698,2]
[333245108,1721975444256,-168.776679,0.00013698,2]
[333245109,1721975444265,-500.0,0.00013698,2]
[333245110,1721975444275,-500.0,0.00013698,2]
[333245111,1721975444284,-500.0,0.00013698,2]
[333245112,1721975444294,-500.0,0.00013698,2]
[333245113,1721975444304,-500.0,0.00013698,2]
[333245114,1721975444314,-500.0,0.00013698,2]
[333245115,1721975444323,-302.55066996,0.00013698,2]
[333245116,1721975444333,-5934.86,0.00013698,2]
[333245117,1721975444342,-500.0,0.00013698,2]
[333245118,1721975444352,-500.0,0.00013698,2]
[333245119,1721975444569,-984.04,0.00013698,2]
[333245120,1721975444579,-500.0,0.00013698,2]
[333245121,1721975444589,-152.236607,0.00013698,2]
[333245122,1721975444605,-500.0,0.00013698,2]
[333245123,1721975444615,-507.14043006,0.00013698,2]
[333245124,1721975444624,-913.44,0.00013698,2]
[333245125,1721975444634,-500.0,0.00013698,2]
[333245126,1721975444645,-183.69417851,0.00013698,2]
[333245127,1721975444654,-500.0,0.00013698,2]
[333245128,1721975444664,-500.0,0.00013698,2]
[333245129,1721975444674,-660.95,0.00013698,2]
[333245130,1721975444683,-500.0,0.00013698,2]
[333245131,1721975444693,-500.0,0.00013698,2]
[333245132,1721975444702,-513.41327555,0.00013698,2]
[333245133,1721975444711,-7223.94,0.00013698,2]
[333245134,1721975444720,-500.0,0.00013698,2]
[333245135,1721975444730,-502.04888662,0.00013698,2]
[333245136,1721975444739,-504.87203213,0.00013698,2]
[333245137,1721975444748,-1135.64,0.00013698,2]
[333245138,1721975444758,-500.63549699,0.00013698,2]
[333245139,1721975444767,-500.0,0.00013698,2]
[333245140,1721975444775,-500.0,0.00013698,2]
[333245141,1721975444785,-545.37,0.00013698,2]
[333245142,1721975444794,-500.0,0.00013698,2]
[333245143,1721975444804,-500.0,0.00013698,2]
[333245144,1721975444813,-720.7,0.00013698,2]
[333245145,1721975444822,-1030.3,0.00013698,2]
[333245146,1721975444831,-677.8,0.00013698,2]
[333245147,1721975444841,-3228.97,0.00013698,2]
[333245148,1721975444850,-501.11110698,0.00013698,2]
[333245149,1721975444860,-500.0,0.00013698,2]
[333245150,1721975444869,-678.46,0.00013698,2]
[333245151,1721975444879,-500.0,0.00013698,2]
[333245152,1721975444888,-500.0,0.00013698,2]
[333245153,1721975444898,-508.56279323,0.00013698,2]
[333245154,1721975444908,-500.0,0.00013698,2]
[333245155,1721975444919,-565.07174941,0.00013698,2]
[333245156,1721975444929,-500.0,0.00013698,2]
[333245157,1721975444938,-500.0,0.00013698,2]
[333245158,1721975444948,-1078.13,0.00013698,2]
[333245159,1721975444957,-762.78,0.00013698,2]
[333245160,1721975444966,-500.0,0.00013698,2]
[333245161,1721975444976,-1598.94,0.00013698,2]
[333245162,1721975444985,-223.1229855,0.00013698,2]
[333245163,1721975444995,-509.45587838,0.00013698,2]
[333245164,1721975445005,-500.0,0.00013698,2]
[333245165,1721975445014,-3140.86,0.00013698,2]
[333245166,1721975445024,-500.0,0.00013698,2]
[333245167,1721975445034,-500.0,0.00013698,2]
[333245168,1721975445044,-500.0,0.00013698,2]
[333245169,1721975445054,-695.8,0.00013698,2]
[333245170,1721975445064,-500.0,0.00013698,2]
[333245171,1721975445074,-500.0,0.00013698,2]
[333245172,1721975445083,-871.65,0.00013698,2]
[333245173,1721975445093,-1286.52,0.00013698,2]
[333245174,1721975445102,-502.02808241,0.00013698,2]
[333245175,1721975445112,-151.0,0.00013698,2]
[333245176,1721975445122,-151.0,0.00013698,2]
[333245177,1721975445132,-151.0,0.00013698,2]
[333245178,1721975445142,-500.0,0.00013698,2]
[333245179,1721975445151,-633.13,0.00013698,2]
[333245180,1721975445160,-860.96,0.00013698,2]
[333245181,1721975445170,-500.0,0.00013698,2]
[333245182,1721975445179,-971.16,0.00013698,2]
[333245183,1721975445189,-500.0,0.00013698,2]
[333245184,1721975445198,-943.8,0.00013698,2]
[333245185,1721975445208,-500.0,0.00013698,2]
[333245186,1721975445218,-1109.89,0.00013698,2]
[333245187,1721975445227,-6081.05,0.00013698,2]
[333245188,1721975445236,-505.68830696,0.00013698,2]
[333245189,1721975445245,-500.0,0.00013698,2]
[333245190,1721975445254,-500.0,0.00013698,2]
[333245191,1721975445264,-568.63,0.00013698,2]
[333245192,1721975445273,-669.58,0.00013698,2]
[333245193,1721975445283,-2701.76,0.00013698,2]
[333245194,1721975445292,-772.0,0.00013698,2]
[333245195,1721975445302,-500.0,0.00013698,2]
[333245196,1721975445311,-500.0,0.00013698,2]
[333245197,1721975445320,-500.0,0.00013698,2]
[333245198,1721975445329,-500.0,0.00013698,2]
[333245199,1721975445339,-3688.09,0.00013698,2]
[333245200,1721975445349,-1048.03,0.00013698,2]
[333245201,1721975445358,-600.48,0.00013698,2]
[333245202,1721975445369,-500.0,0.00013698,2]
[333245203,1721975445378,-500.0,0.00013698,2]
[333245204,1721975445390,-666.21,0.00013698,2]
[333245205,1721975445400,-1022.41,0.00013698,2]
[333245206,1721975445411,-500.0,0.00013698,2]
[333245207,1721975445422,-952.2,0.00013698,2]
[333245208,1721975445433,-500.0,0.00013698,2]
[333245209,1721975445444,-1225.02,0.00013698,2]
[333245210,1721975445454,-570.3027067,0.00013698,2]
[333245211,1721975445464,-500.0,0.00013698,2]
[333245212,1721975445475,-1226.57,0.00013698,2]
[333245213,1721975445486,-500.0,0.00013698,2]
[333245214,1721975445496,-500.0,0.00013698,2]
[333245215,1721975445505,-500.0,0.00013698,2]
[333245216,1721975445515,-507.96421758,0.00013698,2]
[333245217,1721975445527,-500.0,0.00013698,2]
[333245218,1721975445536,-500.0,0.00013698,2]
[333245219,1721975445546,-1324.8,0.00013698,2]
[333245220,1721975445557,-500.0,0.00013698,2]
[333245221,1721975445566,-500.0,0.00013698,2]
[333245222,1721975445577,-984.56,0.00013698,2]
[333245223,1721975445586,-500.0,0.00013698,2]
[333245224,1721975445601,-1063.4,0.00013698,2]
[333245225,1721975445611,-500.0,0.00013698,2]
[333245226,1721975445621,-503.68264357,0.00013698,2]
[333245227,1721975445632,-1993.05,0.00013698,2]
[333245228,1721975445645,-500.0,0.00013698,2]
[333245229,1721975445657,-500.0,0.00013698,2]
[333245230,1721975445671,-500.0,0.00013698,2]
[333245231,1721975445682,-151.0,0.00013698,2]
[333245232,1721975445693,-154.033888,0.00013698,2]
[333245233,1721975445703,-500.0,0.00013698,2]
[333245234,1721975445714,-504.78094596,0.00013698,2]
[333245235,1721975445723,-1145.89,0.00013698,2]
[333245236,1721975445734,-500.0,0.00013698,2]
[333245237,1721975445743,-500.0,0.00013698,2]
[333245238,1721975445754,-513.59250727,0.00013698,2]
[333245239,1721975445766,-500.0,0.00013698,2]
[333245240,1721975445777,-998.91,0.00013698,2]
[333245241,1721975445787,-503.04489865,0.00013698,2]
[333245242,1721975445799,-502.67013176,0.00013698,2]
[333245243,1721975445809,-500.0,0.00013698,2]
[333245244,1721975445819,-879.72,0.00013698,2]
[333245245,1721975445831,-500.0,0.00013698,2]
[333245246,1721975445841,-500.0,0.00013698,2]
[333245247,1721975445853,-674.67,0.00013698,2]
[333245248,1721975445864,-500.0,0.00013698,2]
[333245249,1721975445875,-601.03,0.00013698,2]
[333245250,1721975445886,-500.0,0.00013698,2]
[333245251,1721975445897,-500.0,0.00013698,2]
[333245252,1721975445907,-500.0,0.00013698,2]
[333245253,1721975445921,-674.9,0.00013698,2]
[333245254,1721975445931,-2781.03,0.00013698,2]
[333245255,1721975445940,-283.86149095,0.00013698,2]
[333245256,1721975445950,-507.20628239,0.00013698,2]
[333245257,1721975445959,-500.0,0.00013698,2]
[333245258,1721975445969,-740.6,0.00013698,2]
[333245259,1721975445978,-740.6,0.00013698,2]
[333245260,1721975445987,-740.6,0.00013698,2]
[333245261,1721975445996,-740.6,0.00013698,2]
[333245262,1721975446006,-740.6,0.00013698,2]
[333245263,1721975446016,-740.6,0.00013698,2]
[333245264,1721975446026,-740.6,0.00013698,2]
[333245265,1721975446038,-740.6,0.00013698,2]
[333245266,1721975446050,-500.0,0.00013698,2]
[333245267,1721975446060,-740.6,0.00013698,2]
[333245268,1721975446071,-740.6,0.00013698,2]
[333245269,1721975446081,-740.6,0.00013698,2]
[333245270,1721975446091,-740.6,0.00013698,2]
[333245271,1721975446100,-740.6,0.00013698,2]
[333245272,1721975446109,-500.0,0.00013698,2]
[333245273,1721975446118,-740.6,0.00013698,2]
[333245274,1721975446127,-740.6,0.00013698,2]
[333245275,1721975446137,-740.6,0.00013698,2]
[333245276,1721975446146,-740.6,0.00013698,2]
[333245277,1721975446157,-504.45439226,0.00013698,2]
[333245278,1721975446168,-740.6,0.00013698,2]
[333245279,1721975446177,-500.0,0.00013698,2]
[333245280,1721975446186,-740.6,0.00013698,2]
[333245281,1721975446195,-740.6,0.00013698,2]
[333245282,1721975446205,-740.6,0.00013698,2]
[333245283,1721975446214,-500.0,0.00013698,2]
[333245284,1721975446223,-740.6,0.00013698,2]
[333245285,1721975446232,-740.6,0.00013698,2]
[333245286,1721975446241,-500.0,0.00013698,2]
[333245287,1721975446251,-740.62277809,0.00013698,2]
[333245288,1721975446261,-500.0,0.00013698,2]
[333245289,1721975446270,-1427.25,0.00013698,2]
[333245290,1721975446279,-500.0,0.00013698,2]
[333245291,1721975446288,-500.0,0.00013698,2]
[333245292,1721975446297,-500.0,0.00013698,2]
[333245293,1721975446307,-470.00421233,0.00013698,2]
[333245294,1721975446316,-500.0,0.00013698,2]
[333245295,1721975446326,-500.0,0.00013698,2]
[333245296,1721975446335,-500.0,0.00013698,2]
[333245297,1721975446344,-500.0,0.00013698,2]
[333245298,1721975446353,-500.0,0.00013698,2]
[333245299,1721975446362,-500.0,0.00013698,2]
[333245300,1721975446371,-500.0,0.00013698,2]
[333245301,1721975446381,-153.125742,0.00013698,2]
[333245302,1721975446390,-500.0,0.00013698,2]
[333245303,1721975446399,-500.0,0.00013698,2]
[333245304,1721975446408,-500.0,0.00013698,2]
[333245305,1721975446419,-500.0,0.00013698,2]
[333245306,1721975446428,-500.0,0.00013698,2]
[333245307,1721975446437,-500.0,0.00013698,2]
[333245308,1721975446446,-649.02039044,0.00013698,2]
[333245309,1721975446456,-651.32,0.00013698,2]
[333245310,1721975446466,-1020.09,0.00013698,2]
[333245311,1721975446475,-457.54401741,0.00013698,2]
[333245312,1721975446484,-853.61,0.00013698,2]
[333245313,1721975446494,-1340.71,0.00013698,2]
[333245314,1721975446503,-500.0,0.00013698,2]
[333245315,1721975446512,-500.0,0.00013698,2]
[333245316,1721975446522,-500.0,0.00013698,2]
[333245317,1721975446531,-500.0,0.00013698,2]
[333245318,1721975446540,-206.36662,0.00013698,2]
[333245319,1721975446550,-206.36662,0.00013698,2]
[333245320,1721975446560,-206.36662,0.00013698,2]
[333245321,1721975446569,-206.36662,0.00013698,2]
[333245322,1721975446579,-206.36662,0.00013698,2]
[333245323,1721975446588,-500.0,0.00013698,2]
[333245324,1721975446601,-206.36662,0.00013698,2]
[333245325,1721975446611,-206.36662,0.00013698,2]
[333245326,1721975446620,-206.36662,0.00013698,2]
[333245327,1721975446630,-206.36662,0.00013698,2]
[333245328,1721975446640,-206.36662,0.00013698,2]
[333245329,1721975446650,-206.36662,0.00013698,2]
[333245330,1721975446661,-206.36662,0.00013698,2]
[333245331,1721975446675,-206.36662,0.00013698,2]
[333245332,1721975446685,-500.0,0.00013698,2]
[333245333,1721975446694,-206.36662,0.00013698,2]
[333245334,1721975446704,-1453.44,0.00013698,2]
[333245335,1721975446713,-206.36662,0.00013698,2]
[333245336,1721975446723,-206.36662,0.00013698,2]
[333245337,1721975446732,-206.36662,0.00013698,2]
[333245338,1721975446742,-624.41,0.00013698,2]
[333245339,1721975446752,-206.36662,0.00013698,2]
[333245340,1721975446763,-206.36662,0.00013698,2]
[333245341,1721975446774,-500.0,0.00013698,2]
[333245342,1721975446785,-206.366613,0.00013698,2]
[333245343,1721975446796,-500.0,0.00013698,2]
[333245344,1721975446805,-500.0,0.00013698,2]
[333245345,1721975446815,-643.73,0.00013698,2]
[333245346,1721975446825,-504.46436506,0.00013698,2]
[333245347,1721975446835,-1142.59,0.00013698,2]
[333245348,1721975446846,-500.0,0.00013698,2]
[333245349,1721975446856,-819.81,0.00013698,2]
[333245350,1721975446866,-517.0852034,0.00013698,2]
[333245351,1721975446876,-500.0,0.00013698,2]
[333245352,1721975446885,-500.0,0.00013698,2]
[333245353,1721975446895,-500.0,0.00013698,2]
[333245354,1721975446905,-1148.37,0.00013698,2]
[333245355,1721975446916,-2059.33,0.00013698,2]
[333245356,1721975446927,-259.32795271,0.00013698,2]
[333245357,1721975446936,-506.24815418,0.00013698,2]
[333245358,1721975446945,-500.0,0.00013698,2]
[333245360,1721975446954,-500.0,0.00013698,2]
[333245363,1721975446967,-1839.54,0.00013698,2]
[333245364,1721975446976,-1073.38,0.00013698,2]
[333245365,1721975446985,-846.13,0.00013698,2]
[333245367,1721975446995,-500.0,0.00013698,2]
[333245369,1721975447004,-500.0,0.00013698,2]
[333245370,1721975447014,-500.0,0.00013698,2]
[333245371,1721975447023,-1443.58,0.00013698,2]
[333245373,1721975447032,-502.1295564,0.00013698,2]
[333245375,1721975447042,-500.0,0.00013698,2]
[333245376,1721975447051,-500.0,0.00013698,2]
[333245378,1721975447061,-500.0,0.00013698,2]
[333245379,1721975447070,-500.0,0.00013698,2]
[333245381,1721975447080,-500.0,0.00013698,2]
[333245383,1721975447090,-500.0,0.00013698,2]
[333245385,1721975447099,-500.0,0.00013698,2]
[333245386,1721975447108,-500.0,0.00013698,2]
[333245388,1721975447118,-500.0,0.00013698,2]
[333245390,1721975447127,-500.0,0.00013698,2]
[333245391,1721975447137,-500.0,0.00013698,2]
[333245393,1721975447146,-592.80057666,0.00013698,2]
[333245395,1721975447156,-500.0,0.00013698,2]
[333245396,1721975447169,-500.58453657,0.00013698,2]
[333245398,1721975447178,-500.0,0.00013698,2]
[333245400,1721975447187,-483.25706206,0.00013698,2]
[333245402,1721975447196,-500.0,0.00013698,2]
[333245403,1721975447205,-500.0,0.00013698,2]
[333245405,1721975447215,-500.0,0.00013698,2]
[333245407,1721975447224,-500.0,0.00013698,2]
[333245408,1721975447233,-500.0,0.00013698,2]
[333245409,1721975447242,-500.0,0.00013698,2]
[333245410,1721975447252,-500.0,0.00013698,2]
[333245411,1721975447261,-500.0,0.00013698,2]
[333245412,1721975447271,-500.55348274,0.00013698,2]
[333245413,1721975447280,-500.0,0.00013698,2]
[333245414,1721975447290,-500.0,0.00013698,2]
[333245415,1721975447299,-500.0,0.00013698,2]
[333245416,1721975447308,-193.51712386,0.00013698,2]
[333245417,1721975447318,-500.0,0.00013698,2]
[333245418,1721975447327,-500.0,0.00013698,2]
[333245419,1721975447336,-500.0,0.00013698,2]
[333245420,1721975447346,-500.0,0.00013698,2]
[333245421,1721975447356,-500.0,0.00013698,2]
[333245422,1721975447366,-500.0,0.00013698,2]
[333245423,1721975447377,-500.0,0.00013698,2]
[333245424,1721975447389,-504.3600509,0.00013698,2]
[333245425,1721975447401,-475.97552572,0.00013698,2]
[333245426,1721975447411,-501.58311684,0.00013698,2]
[333245427,1721975447424,-500.0,0.00013698,2]
[333245428,1721975447435,-2654.9,0.00013698,2]
[333245429,1721975447446,-500.0,0.00013698,2]
[333245430,1721975447456,-2654.9,0.00013698,2]
[333245431,1721975447467,-2654.9,0.00013698,2]
[333245432,1721975447477,-2654.9,0.00013698,2]
[333245433,1721975447486,-2654.9,0.00013698,2]
[333245434,1721975447495,-2654.9,0.00013698,2]
[333245435,1721975447505,-2654.9,0.00013698,2]
[333245436,1721975447516,-500.0,0.00013698,2]
[333245437,1721975447528,-2654.9,0.00013698,2]
[333245438,1721975447540,-500.0,0.00013698,2]
[333245439,1721975447549,-515.31335447,0.00013698,2]
[333245440,1721975447558,-2654.9,0.00013698,2]
[333245441,1721975447569,-500.8979793,0.00013698,2]
[333245442,1721975447580,-500.0,0.00013698,2]
[333245443,1721975447592,-2654.9,0.00013698,2]
[333245444,1721975447604,-517.330174,0.00013698,2]
[333245445,1721975447614,-2654.9,0.00013698,2]
[333245446,1721975447625,-2654.9,0.00013698,2]
[333245447,1721975447635,-2654.9,0.00013698,2]
[333245448,1721975447646,-2654.9,0.00013698,2]
[333245449,1721975447656,-2654.9,0.00013698,2]
[333245450,1721975447668,-2654.9,0.00013698,2]
[333245452,1721975447681,-2654.9,0.00013698,2]
[333245453,1721975447691,-2654.9,0.00013698,2]
[333245455,1721975447700,-2654.9,0.00013698,2]
[333245456,1721975447709,-2654.9,0.00013698,2]
[333245458,1721975447719,-500.0,0.00013698,2]
[333245460,1721975447729,-2654.9,0.00013698,2]
[333245462,1721975447739,-2654.9,0.00013698,2]
[333245463,1721975447748,-2654.9,0.00013698,2]
[333245465,1721975447758,-2654.98226985,0.00013698,2]
[333245467,1721975447768,-503.19222684,0.00013698,2]
[333245469,1721975447779,-500.0,0.00013698,2]
[333245470,1721975447791,-151.694852,0.00013698,2]
[333245472,1721975447801,-500.0,0.00013698,2]
[333245473,1721975447810,-500.0,0.00013698,2]
[333245475,1721975447820,-500.0,0.00013698,2]
[333245477,1721975447830,-500.0,0.00013698,2]
[333245478,1721975447839,-500.0,0.00013698,2]
[333245480,1721975447849,-500.0,0.00013698,2]
[333245482,1721975447860,-500.0,0.00013698,2]
[333245484,1721975447870,-504.02751053,0.00013698,2]
[333245485,1721975447881,-151.0,0.00013698,2]
[333245487,1721975447897,-151.0,0.00013698,2]
[333245489,1721975447937,-151.0,0.00013698,2]
[333245490,1721975448016,-151.0,0.00013698,2]
[333245492,1721975448154,-500.0,0.00013698,2]
[333245494,1721975448286,-151.0,0.00013698,2]
[333245495,1721975448409,-230.620817,0.00013698,2]
[333245496,1721975448510,-150.32070938,0.00013698,2]
[333245497,1721975448623,-255.70376863,0.00013698,2]
[333245498,1721975448670,-500.0,0.00013698,2]
[333245499,1721975448685,-515.03251969,0.00013698,2]
[333245500,1721975448695,-500.0,0.00013698,2]
[333245501,1721975448705,-2876.46722793,0.00013698,2]